fUSD/lending_fUSD_20250628
["ID","MTS","AMOUNT","RATE_DAILY","PERIOD"]
[368249485,1751071894510,-150.0,0.00046627,60]
[368249486,1751071894519,-564.0,0.00046627,60]
[368249487,1751071894529,-509.50321987,0.00046627,60]
[368249488,1751071894538,-500.0,0.00046627,60]
[368249489,1751071894547,-500.0,0.00046627,60]
[368249490,1751071894557,-500.0,0.00046627,60]
[368249491,1751071894567,-500.0,0.00046627,60]
[368249492,1751071894577,-500.0,0.00046627,60]
[368249493,1751071894587,-500.0,0.00046627,60]
[368249494,1751071894597,-500.0,0.00046627,60]
[368249495,1751071894607,-150.0,0.00046627,60]
[368249496,1751071894617,-500.0,0.00046627,60]
[368249497,1751071894627,-500.0,0.00046627,60]
[368249498,1751071894636,-500.0,0.00046627,60]
[368249499,1751071894646,-381.95202855,0.00046627,60]
[368249500,1751071894656,-500.0,0.00046627,60]
[368249501,1751071894666,-500.0,0.00046627,120]
[368249502,1751071894675,-500.0,0.00046627,120]
[368249503,1751071894684,-500.0,0.00046627,120]
[368249504,1751071894694,-500.0,0.00046627,120]
[368249505,1751071894703,-500.0,0.00046627,120]
[368249506,1751071894712,-500.0,0.00046627,120]
[368249507,1751071894721,-500.0,0.00046627,120]
[368249508,1751071894731,-500.0,0.00046627,120]
[368249509,1751071894741,-500.0,0.00046627,120]
[368249510,1751071894750,-500.0,0.00046627,120]
[368249511,1751071894760,-500.0,0.00046627,120]
[368249512,1751071894769,-500.0,0.00046627,120]
[368249513,1751071894778,-500.0,0.00046627,120]
[368249514,1751071894787,-500.0,0.00046627,120]
[368249515,1751071894796,-500.0,0.00046627,120]
[368249516,1751071894805,-500.0,0.00046627,120]
[368249517,1751071894815,-501.0,0.00046627,120]
[368249518,1751071894824,-500.0,0.00046627,120]
[368249519,1751071894833,-500.0,0.00046627,120]
[368249520,1751071894842,-502.0,0.00046627,120]
[368249521,1751071894851,-500.0,0.00046627,120]
[368249522,1751071894860,-500.0,0.00046627,120]
[368249523,1751071894869,-500.0,0.00046627,120]
[368249524,1751071894878,-500.0,0.00046627,120]
[368249525,1751071894887,-500.0,0.00046627,120]
[368249526,1751071894897,-500.0,0.00046627,120]
[368249527,1751071894906,-500.0,0.00046627,120]
[368249528,1751071894915,-500.0,0.00046627,120]
[368249529,1751071894924,-500.0,0.00046627,120]
[368249530,1751071894934,-500.0,0.00046627,120]
[368249531,1751071894943,-500.0,0.00046627,120]
[368249532,1751071894952,-500.0,0.00046627,120]
[368249533,1751071894960,-500.0,0.00046627,120]
[368249534,1751071894970,-500.0,0.00046627,120]
[368249535,1751071894980,-500.0,0.00046627,120]
[368249536,1751071894989,-500.0,0.00046627,120]
[368249537,1751071894998,-500.0,0.00046627,120]
[368249538,1751071895008,-500.0,0.00046627,120]
[368249539,1751071895017,-500.0,0.00046627,120]
[368249540,1751071895026,-500.0,0.00046627,120]
[368249541,1751071895035,-500.0,0.00046627,120]
[368249542,1751071895045,-500.0,0.00046627,120]
[368249543,1751071895055,-500.0,0.00046627,120]
[368249544,1751071895064,-500.0,0.00046627,120]
[368249545,1751071895073,-500.0,0.00046627,120]
[368249546,1751071895082,-500.0,0.00046627,120]
[368249547,1751071895092,-500.0,0.00046627,120]
[368249548,1751071895101,-500.0,0.00046627,120]
[368249549,1751071895109,-500.0,0.00046627,120]
[368249550,1751071895118,-500.0,0.00046627,120]
[368249551,1751071895128,-500.0,0.00046627,120]
[368249552,1751071895137,-500.0,0.00046627,120]
[368249553,1751071895147,-500.0,0.00046627,120]
[368249554,1751071895156,-500.0,0.00046627,120]
[368249555,1751071895165,-500.0,0.00046627,120]
[368249556,1751071895174,-500.0,0.00046627,120]
[368249557,1751071895183,-500.0,0.00046627,120]
[368249558,1751071895192,-500.0,0.00046627,120]
[368249559,1751071895202,-503.0,0.00046627,120]
[368249560,1751071895214,-161.18,0.000467,45]
[368249561,1751071895223,-189.69659023,0.00046761,120]
[368249562,1751071895233,-3000.0,0.000468,90]
[368249563,1751071895242,-190594.40200825,0.000468,120]
[368249564,1751071895253,-373.2,0.00046822,30]
[368249565,1751071895262,-462.31,0.00046822,30]
[368249566,1751071895272,-213.43,0.00046848,120]
[368249567,1751071895282,-490.0,0.00046849,60]
[368249568,1751071895292,-490.0,0.00046849,60]
[368249569,1751071895301,-616.07,0.00046849,60]
[368249570,1751071895310,-490.0,0.00046849,60]
[368249571,1751071895320,-490.0,0.00046849,60]
[368249572,1751071895329,-490.0,0.00046849,60]
[368249573,1751071895339,-632.98,0.00046849,60]
[368249574,1751071895347,-594.52,0.00046849,60]
[368249575,1751071895357,-490.0,0.00046849,60]
[368249576,1751071895366,-490.0,0.00046849,60]
[368249577,1751071895376,-553.58,0.00046849,60]
[368249578,1751071895385,-508.58,0.00046849,60]
[368249579,1751071895395,-490.0,0.00046849,60]
[368249580,1751071895405,-490.0,0.00046849,60]
[368249581,1751071895414,-490.0,0.00046849,60]
[368249582,1751071895423,-490.0,0.00046849,60]
[368249583,1751071895433,-490.0,0.00046849,60]
[368249584,1751071895442,-656.12,0.00046849,2]
[368249585,1751071895451,-352.37284399,0.00046849,60]
[368249586,1751071895461,-490.0,0.00046849,60]
[368249587,1751071895471,-490.0,0.00046849,60]
[368249588,1751071895480,-687.24,0.00046849,60]
[368249589,1751071895490,-490.0,0.00046849,60]
[368249590,1751071895501,-490.0,0.00046849,60]
[368249591,1751071895510,-490.0,0.00046849,60]
[368249592,1751071895520,-490.0,0.00046849,60]
[368249593,1751071895529,-448.24,0.00046849,60]
[368249594,1751071895539,-490.0,0.00046849,60]
[368249595,1751071895549,-1241.16,0.00046849,60]
[368249596,1751071895559,-527.43248837,0.00046849,60]
[368249597,1751071895568,-779.72,0.00046849,60]
[368249598,1751071895577,-490.0,0.00046849,60]
[368249599,1751071895587,-597.71,0.00046849,60]
[368249600,1751071895596,-490.0,0.00046849,60]
[368249601,1751071895606,-490.0,0.00046849,60]
[368249602,1751071895616,-156.106223,0.00046849,60]
[368249603,1751071895626,-696.1,0.00046849,60]
[368249604,1751071895635,-490.0,0.00046849,60]
[368249605,1751071895644,-154.28143,0.00046849,60]
[368249606,1751071895654,-390.60970674,0.00046849,60]
[368249607,1751071895663,-490.0,0.00046849,60]
[368249608,1751071895673,-490.0,0.00046849,60]
[368249609,1751071895682,-490.0,0.00046849,60]
[368249610,1751071895691,-179.564808,0.00046849,60]
[368249611,1751071895701,-721.73,0.00046849,60]
[368249612,1751071895710,-490.0,0.00046849,60]
[368249613,1751071895720,-274.89,0.00046849,60]
[368249614,1751071895729,-490.0,0.00046849,60]
[368249615,1751071895739,-490.0,0.00046849,60]
[368249616,1751071895748,-490.0,0.00046849,60]
[368249617,1751071895758,-958.32,0.00046849,60]
[368249618,1751071895767,-490.0,0.00046849,60]
[368249619,1751071895776,-405.28,0.00046849,60]
[368249620,1751071895785,-490.0,0.00046849,60]
[368249621,1751071895795,-507.37,0.00046849,60]
[368249622,1751071895804,-490.0,0.00046849,60]
[368249623,1751071895813,-490.0,0.00046849,60]
[368249624,1751071895823,-743.38,0.00046849,60]
[368249625,1751071895832,-526.08,0.00046849,60]
[368249626,1751071895841,-490.0,0.00046849,60]
[368249627,1751071895850,-1492.54,0.00046849,60]
[368249628,1751071895859,-519.17,0.00046849,60]
[368249629,1751071895868,-490.0,0.00046849,60]
[368249630,1751071895877,-490.0,0.00046849,60]
[368249631,1751071895886,-490.0,0.00046849,60]
[368249632,1751071895897,-490.0,0.00046849,60]
[368249633,1751071895907,-286.31690367,0.00046849,60]
[368249634,1751071895918,-490.0,0.00046849,60]
[368249635,1751071895928,-490.0,0.00046849,60]
[368249636,1751071895938,-490.0,0.00046849,60]
[368249637,1751071895947,-490.0,0.00046849,60]
[368249638,1751071895956,-570.52,0.00046849,60]
[368249639,1751071895965,-666.63,0.00046849,60]
[368249640,1751071895975,-920.83,0.00046849,60]
[368249641,1751071895984,-490.0,0.00046849,60]
[368249642,1751071895993,-1154.84,0.00046849,60]
[368249643,1751071896003,-490.0,0.00046849,60]
[368249644,1751071896012,-733.75,0.00046849,60]
[368249645,1751071896023,-519.13,0.00046849,60]
[368249646,1751071896032,-206.74,0.00046849,60]
[368249647,1751071896042,-438.4294199,0.00046849,60]
[368249648,1751071896052,-526.74,0.00046849,60]
[368249649,1751071896061,-513.84,0.00046849,60]
[368249650,1751071896071,-555.78,0.00046849,60]
[368249651,1751071896080,-490.0,0.00046849,60]
[368249652,1751071896089,-490.0,0.00046849,60]
[368249653,1751071896098,-858.82,0.00046849,60]
[368249654,1751071896108,-490.0,0.00046849,60]
[368249655,1751071896117,-744.08,0.00046849,60]
[368249656,1751071896126,-490.0,0.00046849,60]
[368249657,1751071896135,-1463.6,0.00046849,60]
[368249658,1751071896144,-504.68,0.00046849,60]
[368249659,1751071896154,-490.0,0.00046849,60]
[368249660,1751071896163,-490.0,0.00046849,60]
[368249661,1751071896172,-632.81,0.00046849,60]
[368249662,1751071896181,-1381.52,0.00046849,60]
[368249663,1751071896191,-821.19,0.00046849,60]
[368249664,1751071896200,-490.0,0.00046849,60]
[368249665,1751071896212,-980.59,0.00046849,60]
[368249666,1751071896221,-490.0,0.00046849,60]
[368249667,1751071896373,-701.16,0.00046849,60]
[368249668,1751071896383,-490.0,0.00046849,60]
[368249669,1751071896393,-1101.82,0.00046849,60]
[368249670,1751071896402,-490.0,0.00046849,60]
[368249671,1751071896411,-492.8,0.00046849,60]
[368249672,1751071896421,-1389.59,0.00046849,60]
[368249673,1751071896430,-761.04,0.00046849,60]
[368249674,1751071896440,-2742.88,0.00046849,60]
[368249675,1751071896449,-3633.8,0.00046849,60]
[368249676,1751071896459,-631.21,0.00046849,60]
[368249677,1751071896468,-560.29,0.00046849,60]
[368249678,1751071896477,-490.0,0.00046849,60]
[368249679,1751071896487,-1119.72,0.00046849,60]
[368249680,1751071896497,-528.93,0.00046849,60]
[368249681,1751071896507,-1621.27,0.00046849,60]
[368249682,1751071896517,-1055.73,0.00046849,60]
[368249683,1751071896526,-1270.62,0.00046849,60]
[368249684,1751071896536,-518.5,0.00046849,120]
[368249685,1751071896546,-3883.34,0.00046849,60]
[368249686,1751071896555,-797.91,0.00046849,60]
[368249687,1751071896565,-881.48,0.00046849,60]
[368249688,1751071896574,-490.0,0.00046849,60]
[368249689,1751071896584,-564.31,0.00046849,60]
[368249690,1751071896593,-960.84,0.00046849,60]
[368249691,1751071896602,-544.38,0.00046849,60]
[368249692,1751071896612,-819.67,0.00046849,60]
[368249693,1751071896622,-548.79,0.00046849,60]
[368249694,1751071896631,-490.0,0.00046849,60]
[368249695,1751071896640,-490.0,0.00046849,60]
[368249696,1751071896650,-212.08,0.00046849,60]
[368249697,1751071896660,-877.78,0.00046849,60]
[368249698,1751071896670,-519.68,0.00046849,60]
[368249699,1751071896680,-499.03,0.00046849,60]
[368249700,1751071896689,-1100.02,0.00046849,60]
[368249701,1751071896699,-1040.49,0.00046849,60]
[368249702,1751071896708,-942.77,0.00046849,60]
[368249703,1751071896717,-953.56,0.00046849,60]
[368249704,1751071896726,-1086.04,0.00046849,60]
[368249705,1751071896737,-490.0,0.00046849,60]
[368249706,1751071896746,-6952.88,0.00046849,60]
[368249707,1751071896756,-531.35,0.00046849,60]
[368249708,1751071896765,-1825.19,0.00046849,60]
[368249709,1751071896774,-551.06,0.00046849,60]
[368249710,1751071896783,-1040.65,0.00046849,60]
[368249711,1751071896792,-551.92,0.00046849,60]
[368249712,1751071896802,-1592.1,0.00046849,60]
[368249713,1751071896812,-990.34,0.00046849,60]
[368249714,1751071896821,-208.27,0.00046849,60]
[368249715,1751071896831,-660.58,0.00046849,60]
[368249716,1751071896840,-899.19,0.00046849,60]
[368249717,1751071896850,-511.18,0.00046849,60]
[368249718,1751071896859,-554.3,0.00046849,60]
[368249719,1751071896869,-548.05,0.00046849,60]
[368249720,1751071896878,-490.0,0.00046849,60]
[368249721,1751071896887,-490.0,0.00046849,60]
[368249722,1751071896896,-490.0,0.00046849,60]
[368249723,1751071896906,-116331.36,0.00046849,60]
[368249724,1751071896914,-490.0,0.00046849,60]
[368249725,1751071896924,-490.0,0.00046849,60]
[368249726,1751071896933,-896.07,0.00046849,60]
[368249727,1751071896943,-774.82,0.00046849,60]
[368249728,1751071896952,-1205.17,0.00046849,60]
[368249729,1751071896962,-787.73,0.00046849,60]
[368249730,1751071896971,-1755.56,0.00046849,60]
[368249731,1751071896981,-490.0,0.00046849,60]
[368249732,1751071896992,-1776.88,0.00046849,60]
[368249733,1751071897001,-497.76,0.00046849,60]
[368249734,1751071897010,-490.0,0.00046849,60]
[368249735,1751071897020,-490.0,0.00046849,60]
[368249736,1751071897030,-850.04,0.00046849,60]
[368249737,1751071897039,-490.0,0.00046849,60]
[368249738,1751071897049,-1470.22,0.00046849,60]
[368249739,1751071897058,-547.95,0.00046849,60]
[368249740,1751071897067,-490.0,0.00046849,60]
[368249741,1751071897076,-906.79,0.00046849,60]
[368249742,1751071897085,-656.99,0.00046849,60]
[368249743,1751071897094,-561.17,0.00046849,60]
[368249744,1751071897104,-532.35,0.00046849,60]
[368249745,1751071897113,-2168.75,0.00046849,60]
[368249746,1751071897123,-490.0,0.00046849,60]
[368249747,1751071897133,-1280.03,0.00046849,60]
[368249748,1751071897142,-371.5056715,0.00046849,60]
[368249749,1751072277211,554.93,0.00027397,120]
[368249750,1751072732526,150.0,0.0002739,120]
[368249751,1751072733548,150.0,0.00019,2]
[368249753,1751072833888,155.27,0.00013699,2]
[368250280,1751073032204,-6508.85169405,0.00033698,5]
[368250281,1751073032214,-400.0,0.00038486,5]
[368250282,1751073032224,-1862.92164999,0.00038487,120]
[368250283,1751073032235,-1874.42468407,0.00038487,120]
[368250284,1751073032244,-205.0,0.0004,120]
[368250285,1751073032253,-4583.81169526,0.000408,60]
[368250286,1751073032262,-151.0,0.00041426,5]
[368250287,1751073032271,-151.0,0.00041432,5]
[368250288,1751073032281,-151.0,0.00041432,5]
[368250289,1751073032290,-151.0,0.00041442,5]
[368250290,1751073032300,-7137.0,0.00042477,2]
[368250291,1751073032310,-4101.0,0.00042477,2]
[368250292,1751073032320,-250.0,0.00042564,2]
[368250293,1751073032329,-1000.0,0.00042915,2]
[368250294,1751073032339,-6655.94,0.00042959,2]
[368250295,1751073032348,-200.0,0.0004301,2]
[368250296,1751073032358,-150.08,0.00043016,2]
[368250297,1751073032368,-1654.935894,0.00043066,2]
[368250298,1751073032378,-314.78,0.00043109,2]
[368250299,1751073032388,-666.0,0.00043232,2]
[368250300,1751073032397,-164.0,0.00043269,2]
[368250301,1751073032407,-277.27,0.00043269,2]
[368250302,1751073032418,-1425.61568548,0.00043508,2]
[368250303,1751073032429,-6458.01255333,0.00043735,15]
[368250304,1751073032438,-1912.42638608,0.00043735,16]
[368250305,1751073032448,-582.32133525,0.00043824,31]
[368250306,1751073032457,-75806.447643,0.00043825,3]
[368250307,1751073032467,-289.24608874,0.00043834,31]
[368250308,1751073032476,-500.0,0.00043834,31]
[368250309,1751073032486,-621.7733839,0.00043834,31]
[368250310,1751073032496,-500.0,0.00043834,31]
[368250311,1751073032505,-500.0,0.00043834,31]
[368250312,1751073032515,-500.0,0.00043834,31]
[368250313,1751073032525,-500.0,0.00043834,31]
[368250314,1751073032534,-500.0,0.00043834,31]
[368250315,1751073032543,-490.0,0.00043835,60]
[368250316,1751073032553,-490.0,0.00043835,60]
[368250317,1751073032562,-490.0,0.00043835,60]
[368250318,1751073032572,-490.0,0.00043835,60]
[368250319,1751073032581,-490.0,0.00043835,60]
[368250320,1751073032590,-490.0,0.00043835,60]
[368250321,1751073032600,-510.0,0.00043835,60]
[368250322,1751073032609,-490.0,0.00043835,60]
[368250323,1751073032619,-490.0,0.00043835,60]
[368250324,1751073032628,-490.0,0.00043835,60]
[368250325,1751073032638,-490.0,0.00043835,60]
[368250326,1751073032647,-490.0,0.00043835,60]
[368250327,1751073032657,-490.0,0.00043835,60]
[368250328,1751073032666,-6.39175665,0.00043835,60]
[368250848,1751073043434,-500.0,0.00038487,60]
[368250850,1751073043443,-156.0,0.00042477,2]
[368250852,1751073043453,-884.0,0.00042477,2]
[368250854,1751073043462,-483.60824335,0.00043835,60]
[368250856,1751073043472,-556.61,0.00043835,120]
[368250858,1751073043481,-490.0,0.00043835,60]
[368250860,1751073043490,-490.0,0.00043835,60]
[368250861,1751073043498,-490.0,0.00043835,60]
[368250863,1751073043506,-490.0,0.00043835,60]
[368250865,1751073043515,-490.0,0.00043835,60]
[368250867,1751073043524,-490.0,0.00043835,60]
[368250869,1751073043533,-338.4271657,0.00043835,60]
[368250871,1751073043543,-490.0,0.00043835,60]
[368250874,1751073043551,-490.0,0.00043835,60]
[368250876,1751073043561,-490.0,0.00043835,60]
[368250878,1751073043570,-314.55,0.00043835,60]
[368250880,1751073043579,-490.0,0.00043835,60]
[368250882,1751073043588,-490.0,0.00043835,60]
[368250884,1751073043598,-490.0,0.00043835,60]
[368250886,1751073043607,-490.0,0.00043835,60]
[368250888,1751073043615,-490.0,0.00043835,60]
[368250890,1751073043625,-490.0,0.00043835,60]
[368250892,1751073043634,-490.0,0.00043835,60]
[368250894,1751073043643,-490.0,0.00043835,60]
[368250896,1751073043653,-490.0,0.00043835,60]
[368250898,1751073043662,-490.0,0.00043835,60]
[368250900,1751073043672,-300.0,0.00043835,60]
[368250902,1751073043681,-490.0,0.00043835,60]
[368250904,1751073043690,-490.0,0.00043835,60]
[368250906,1751073043700,-490.0,0.00043835,60]
[368250908,1751073043709,-490.0,0.00043835,60]
[368250911,1751073043718,-490.0,0.00043835,60]
[368250913,1751073043728,-490.0,0.00043835,60]
[368250915,1751073043740,-490.0,0.00043835,60]
[368250917,1751073043750,-520.0,0.00043835,60]
[368250919,1751073043759,-490.0,0.00043835,60]
[368250921,1751073043768,-544.05749879,0.00043835,60]
[368250923,1751073043778,-490.0,0.00043835,60]
[368250925,1751073043787,-490.0,0.00043835,60]
[368250927,1751073043796,-490.0,0.00043835,60]
[368250930,1751073043805,-520.0,0.00043835,60]
[368250933,1751073043815,-490.0,0.00043835,60]
[368250935,1751073043824,-490.0,0.00043835,60]
[368250957,1751073044017,-490.0,0.00043835,60]
[368250959,1751073044027,-490.0,0.00043835,60]
[368250961,1751073044038,-490.0,0.00043835,60]
[368250963,1751073044047,-490.0,0.00043835,60]
[368250965,1751073044055,-336.78,0.00043835,60]
[368250967,1751073044064,-490.0,0.00043835,60]
[368250969,1751073044073,-490.0,0.00043835,60]
[368250971,1751073044082,-490.0,0.00043835,60]
[368250973,1751073044091,-490.0,0.00043835,60]
[368250975,1751073044100,-378.55470962,0.00043835,60]
[368250977,1751073044110,-490.0,0.00043835,60]
[368250979,1751073044119,-490.0,0.00043835,60]
[368250981,1751073044128,-490.0,0.00043835,60]
[368250983,1751073044137,-490.0,0.00043835,60]
[368250985,1751073044146,-490.0,0.00043835,60]
[368250987,1751073044156,-490.0,0.00043835,60]
[368250989,1751073044165,-490.0,0.00043835,60]
[368250991,1751073044174,-490.0,0.00043835,60]
[368250993,1751073044184,-490.0,0.00043835,60]
[368250995,1751073044193,-490.0,0.00043835,60]
[368250997,1751073044202,-490.0,0.00043835,60]
[368250999,1751073044211,-490.0,0.00043835,60]
[368251001,1751073044221,-490.0,0.00043835,60]
[368251003,1751073044230,-490.0,0.00043835,60]
[368251005,1751073044239,-490.0,0.00043835,60]
[368251007,1751073044248,-520.0,0.00043835,60]
[368251009,1751073044258,-490.0,0.00043835,60]
[368251011,1751073044267,-435.71318864,0.00043835,120]
[368251013,1751073044276,-606.16,0.00043835,60]
[368251015,1751073044285,-490.0,0.00043835,60]
[368251017,1751073044296,-490.0,0.00043835,60]
[368251019,1751073044306,-518.02528523,0.00043835,60]
[368251021,1751073044315,-539.92211,0.00043835,60]
[368251023,1751073044324,-490.0,0.00043835,60]
[368251025,1751073044334,-490.0,0.00043835,60]
[368251027,1751073044343,-490.0,0.00043835,60]
[368251030,1751073044352,-207.99019083,0.00043835,60]
[368251201,1751073046121,-9.24469437,0.00043835,60]
[368251617,1751073247256,-594.0,0.00042,60]
[368251618,1751073247284,-1162.0,0.00042477,2]
[368251619,1751073247308,-151.0,0.00042543,5]
[368251620,1751073247329,-200.0,0.00043,120]
[368251621,1751073247349,-157.39,0.00043009,2]
[368251622,1751073247370,-150.08,0.00043009,2]
[368251623,1751073247390,-336.14129266,0.00043735,2]
[368251624,1751073247411,-51937.3620878,0.00043825,3]
[368251625,1751073247431,-490.0,0.00043835,60]
[368251626,1751073247452,-490.0,0.00043835,60]
[368251627,1751073247473,-490.0,0.00043835,60]
[368251628,1751073247494,-490.0,0.00043835,60]
[368251629,1751073247515,-490.0,0.00043835,60]
[368251630,1751073247536,-490.0,0.00043835,60]
[368251631,1751073247558,-490.0,0.00043835,60]
[368251632,1751073247578,-490.0,0.00043835,60]
[368251633,1751073247599,-490.0,0.00043835,60]
[368251634,1751073247624,-490.0,0.00043835,60]
[368251635,1751073247645,-490.0,0.00043835,60]
[368251636,1751073247667,-490.0,0.00043835,60]
[368251637,1751073247690,-490.0,0.00043835,60]
[368251638,1751073247710,-490.0,0.00043835,60]
[368251639,1751073247731,-490.0,0.00043835,60]
[368251640,1751073247751,-520.0,0.00043835,60]
[368251641,1751073247772,-490.0,0.00043835,60]
[368251642,1751073247793,-520.0,0.00043835,60]
[368251643,1751073247815,-490.0,0.00043835,60]
[368251644,1751073247837,-490.0,0.00043835,60]
[368251645,1751073247864,-490.0,0.00043835,60]
[368251646,1751073247887,-490.0,0.00043835,60]
[368251647,1751073247908,-490.0,0.00043835,60]
[368251648,1751073247931,-490.0,0.00043835,60]
[368251649,1751073247953,-490.0,0.00043835,60]
[368251650,1751073247975,-490.0,0.00043835,60]
[368251651,1751073247998,-490.0,0.00043835,60]
[368251652,1751073248019,-490.0,0.00043835,60]
[368251653,1751073248040,-338.53282113,0.00043835,60]
[368251654,1751073248060,-490.0,0.00043835,60]
[368251655,1751073248081,-490.0,0.00043835,60]
[368251656,1751073248101,-490.0,0.00043835,60]
[368251657,1751073248121,-490.0,0.00043835,60]
[368251658,1751073248142,-490.0,0.00043835,60]
[368251659,1751073248162,-490.0,0.00043835,60]
[368251660,1751073248183,-490.0,0.00043835,60]
[368251661,1751073248203,-490.0,0.00043835,60]
[368251662,1751073248225,-490.0,0.00043835,60]
[368251663,1751073248246,-490.0,0.00043835,60]
[368251664,1751073248267,-490.0,0.00043835,60]
[368251665,1751073248288,-490.0,0.00043835,60]
[368251666,1751073248308,-490.0,0.00043835,60]
[368251667,1751073248329,-490.0,0.00043835,60]
[368251668,1751073248350,-490.0,0.00043835,60]
[368251669,1751073248372,-490.0,0.00043835,60]
[368251670,1751073248395,-490.0,0.00043835,60]
[368251671,1751073248415,-490.0,0.00043835,60]
[368251672,1751073248436,-490.0,0.00043835,60]
[368251673,1751073248456,-500.0,0.00043835,2]
[368251674,1751073248478,-490.0,0.00043835,60]
[368251675,1751073248498,-490.0,0.00043835,60]
[368251676,1751073248518,-490.0,0.00043835,60]
[368251677,1751073248540,-490.0,0.00043835,60]
[368251678,1751073248560,-490.0,0.00043835,60]
[368251679,1751073248582,-490.0,0.00043835,60]
[368251680,1751073248603,-490.0,0.00043835,60]
[368251681,1751073248624,-490.0,0.00043835,60]
[368251682,1751073248646,-581.24,0.00043835,60]
[368251683,1751073248666,-490.0,0.00043835,60]
[368251684,1751073248687,-490.0,0.00043835,60]
[368251685,1751073248709,-490.0,0.00043835,60]
[368251686,1751073248729,-490.0,0.00043835,60]
[368251687,1751073248750,-490.0,0.00043835,60]
[368251688,1751073248772,-490.0,0.00043835,60]
[368251689,1751073248793,-490.0,0.00043835,60]
[368251690,1751073248814,-490.0,0.00043835,60]
[368251691,1751073248834,-492.93057527,0.00043835,60]
[368251692,1751073248858,-490.0,0.00043835,60]
[368251693,1751073248879,-490.0,0.00043835,60]
[368251694,1751073248900,-490.0,0.00043835,60]
[368251695,1751073248920,-490.0,0.00043835,60]
[368251696,1751073248944,-490.0,0.00043835,60]
[368251697,1751073248964,-490.0,0.00043835,60]
[368251698,1751073248986,-490.0,0.00043835,60]
[368251699,1751073249008,-490.0,0.00043835,60]
[368251700,1751073249029,-490.0,0.00043835,60]
[368251701,1751073249050,-490.0,0.00043835,60]
[368251702,1751073249071,-490.0,0.00043835,60]
[368251703,1751073249092,-490.0,0.00043835,60]
[368251704,1751073249112,-490.0,0.00043835,60]
[368251705,1751073249134,-490.0,0.00043835,60]
[368251706,1751073249158,-490.0,0.00043835,60]
[368251707,1751073249179,-490.0,0.00043835,60]
[368251708,1751073249199,-533.87301879,0.00043835,60]
[368251709,1751073249219,-490.0,0.00043835,60]
[368251710,1751073249238,-490.0,0.00043835,60]
[368251711,1751073249258,-490.0,0.00043835,60]
[368251712,1751073249278,-490.0,0.00043835,60]
[368251713,1751073249298,-490.0,0.00043835,60]
[368251714,1751073249320,-490.0,0.00043835,60]
[368251715,1751073249342,-490.0,0.00043835,60]
[368251716,1751073249542,-490.0,0.00043835,60]
[368251717,1751073249566,-490.0,0.00043835,60]
[368251718,1751073249587,-510.0,0.00043835,60]